{"text_format":"3","workbook":"xlsx","n_sheets":1,"sheets":["YEAR 1"],"not_rendered":{"defined_names":1},"read":"whole","date_system":"1900"}

{"sheet":"YEAR 1","index":0,"n_rows":353,"n_cols":7,"rows_kept":353,"merged":[[0,3,0,5],[1,3,1,6],[3,4,3,5]]}
[null,"               SCHOLASTIC STATIONERY PACKS (E24/2023/2024)",null,"Prices must be ALL inclusive (VAT, supply, packaging and delivery to various schools)\n ALL items and sub-items must be prices"]
[null,"COMPANY:  _____________________________  SIGNATURE:____________________________________     ",null,"Do not put the \"R\" for rand before you capture the amount as it is allready set to automatically put the R. Use a full stop if cents are involved (e.g. R2.03 Do not use comma's).\nEnsure that you select all the items when you print it."]
[null,"GRADE R: SCHOLASTIC STATIONERY PACKS (ITEM 1) ",null,"Price for quantities indicated. Price must include supply, packaging and delivery to schools"]
[{"$nulls":3},"NAME OF COMPANY: "]
["ITEM NO","                                              SPECIFICATION/TYPE/DESCRIPTIONS","QTY","1st Year Price","2nd Year Price","3rd Year Price"]
["1.1","Book: College exercise,A4L (Landscape), 17mm ruling and margin, 48 pages  ",1]
["1.2","Drawing book: white without inter-leaving paper, soft cover, Size A4Landscape, 48pages",1]
["1.3","Book 1 exercise quard 7mm square, lineation with margin, Size A5, 72pages",1]
["1.4","Book: College exercise,A4L (Landscape), unruled, 48 pages ",2]
["1.5","HB Pencil:  Junior Grip Triangular",2]
["1.6","Jumbo Crayons: Wax type, Easy Grip, Non-toxic, Assorted colours, Large, box of 12 colours \n(Submit sample and indicate brand/model in table on Standard Conditions)",1]
["1.7","Crayon: Medium wax type, box of 12 colours non-toxic\n(Submit sample and indicate brand/model in table on Standard Conditions)",1]
["1.8","Crayon: Pencil type, half size, box of 12 colours\n(Submit sample and indicate brand/model in table on Standard Conditions)",1]
["1.9","Pencil Sharpener: 2-hole sharpener with high quality sharpening blades\n(Submit sample and indicate brand/model in table on Standard Conditions)",1]
["1.10","Eraser: Pencil rectangular, minimum 60 x 20 x 10mm, Soft and of good quality, Individually sleeved or wrappe, non toxic",1]
["1.11","Ruler: plastic, 300mm long graduated plastic, non brittle",1]
["1.12","Modelling Clay: 500g, plasticine, mixed colours of 5, According to the latest SABS specifications\n(Submit sample and indicate brand/model in table on Standard Conditions)",1]
["1.13","Scissors: kindergarten (5 inch), stainless steel, non-stick soft grip, blunt-nose, dual handles",1]
["1.14","Pocket (flip) File: 30 pockets",1]
["1.15","Glue Stick: Size 40g, non-toxic, (3 year shelf life)\n(Submit sample and indicate brand/model in table on Standard Conditions)",4]
["1.16","Paint Brush: Hog hair round, No 10 and No 14",4]
["1.17","Paint Set: Water colour set of 12 primary colours",1]
[null,"Grand Total Amount Per Pack,Per Learner ",null,"1st Year Price","2nd Year Price","3rd Year Price","Total/pack 3 years"]
[null,"(Including Supply and Delivery to Schools)",null,{"$f":"SUM(D6:D22)","v":{"v":0,"d":"R0.00"}},{"$f":"SUM(E6:E22)","v":{"v":0,"d":"R0.00"}},{"v":0,"d":"R0.00"},{"$f":"SUM(D24:F24)","v":{"v":0,"d":"R0.00"}}]
[]
[null,"GRADE 1-2 SCHOLASTIC STATIONERY PACKS (ITEMS 2)",null," (Price for quantities indicated)"]
[]
["ITEM NO","                                              SPECIFICATION/TYPE/DESCRIPTIONS","QTY","1st Year Price","2nd Year Price","3rd Year Price"]
["2.1","Book: College exercise,A4L (Landscape), 17mm ruling and margin, 48 pages  ",2]
["2.2","Book Exercise: Feint with margin, size A4, 72pages, soft cover",8]
["2.3","Book Exercise:feint with margin, 192 pages, hard cover, 2 Quire, Size A4",2]
["2.4","Book Exercise Irish, 9mm, Quard Cross Lines, 48 pages",4]
["2.5","HB Pencil:  Junior Grip Triangular",4]
["2.6","Crayon: Pencil type, full size, box of 12 colours",4]
["2.7","Pencil Sharpener: 2-hole sharpner with high quality sharpening blades",1]
["2.8","Eraser: Pencil rectangular, minimum 60 x 20 x 10mm, Soft and of good quality, Individually sleeved or wrappe, non toxic",1]
["2.9","Ruler: plastic, 300mm long, graduated plastic, non-brittle). Top graduated both sides",1]
["2.10","Crayons: Wax type, Jumbo, box of 24, NON TOXIC ",1]
["2.11","Scissors: kindergarten (5 inch), stainless steel, non-stick soft grip, blunt-nose, dual handles",1]
["2.12","Glue Stick: Size 40g, non-toxic, (3 year shelf life) (Submit sample and indicate brand/model in table on Standard Conditions)",4]
["2.13","Book: scribbler (Jotter): unruled , Size A4, 72 pages, soft cover",1]
["2.14","Book: College exercise, ruling, Size A4, 72pages, 17mm",1]
["2.15","Permanent Marker (koki pen): Black, medium",1]
["2.16","Permanent Marker (koki): Red, medium",1]
["2.17","Pocket (flip) File: 30 pockets",1]
["2.18","Paint Brush: Hog hair round, No 10 and No 14",4]
["2.19","Paint Set: Water colour set of 12 primary colours",1]
[null,"Grand Total Amount Per Pack,Per Learner ",null,"1st Year Price","2nd Year Price","3rd Year Price","Total/pack 3 years"]
[null,"(Including Supply and Delivery to Schools)",null,{"$f":"SUM(D29:D47)","v":{"v":0,"d":"R0.00"}},{"$f":"SUM(E29:E47)","v":{"v":0,"d":"R0.00"}},{"v":0,"d":"R0.00"},{"$f":"SUM(D49:F49)","v":{"v":0,"d":"R0.00"}}]
[]
[null,"GRADE 3: SCHOLASTIC STATIONERY PACKS (ITEMS 3)",null,"(Price for quantities indicated)"]
[]
["ITEM NO","                                              SPECIFICATION/TYPE/DESCRIPTIONS","QTY","1st Year Price","2nd Year Price","3rd Year Price"]
["3.1","Book Exercise: Feint with margin, size A4, 72pages, soft cover",8]
["3.2","Book: College exercise, ruling, Size A4, 72pages, 17mm",1]
["3.3","Book Exercise:feint with margin, 192 pages, hard cover, 2 Quire, Size A4",1]
["3.4","Book Erxecise Irish, 9mm, Quard Cross Lines, 48 pages",4]
["3.5","HB Pencil:  Good Quality, Blacklead, The wood must not be spongy, but should shave off clearly when sharpened on a rotary sharpener (submit sample and indicate brand/model in table on Standard Conditions)",4]
["3.6","Crayon: Pencil type, half size, box of 12 colours",1]
["3.7","Pencil Sharpener: 2-hole sharpener with high quality sharpening blades",1]
["3.8","Eraser: Pencil rectangular, minimum 60 x 20 x 10mm, Soft and of good quality, Individually sleeved or wrappe, non toxic",1]
["3.9","Ruler: plastic, 300mm long, graduated plastic, non-brittle). Top graduated both sides",1]
["3.10","Crayons: Wax type, box of 24, NON TOXIC ",1]
["3.11","Scissors: kindergarten (5 inch), stainless steel, non-stick soft grip, blunt-nose, dual handles",1]
["3.12","Glue Stick: Size 40g, non-toxic, (3 year shelf life) (submit sample and indicate brand/model in table on Standard Conditions)",4]
["3.13","Book: scribbler (Jotter): unruled , Size A4, 72 pages, soft cover",1]
["3.14","Permanent Marker (koki pen): Black, medium",1]
["3.15","Permanent Marker (koki): Red, medium",1]
["3.16","Pocket (flip) File: 30 pockets",1]
["3.17","Pen Ballpoint: Blue, Non-rectractable, non-replaceable refill. Ballsize: medium",1]
["3.18","Paint Brush: Hog hair round, No 10 and No 14",4]
["3.19","Paint Set: Water colour set of 12 primary colours",1]
[null,"Grand Total Amount Per Pack,Per Learner ",null,"1st Year Price","2nd Year Price","3rd Year Price","Total/pack 3 years"]
[null,"(Including Supply and Delivery to Schools)",null,{"$f":"SUM(D54:D72)","v":{"v":0,"d":"R0.00"}},{"$f":"SUM(E54:E72)","v":{"v":0,"d":"R0.00"}},{"v":0,"d":"R0.00"},{"$f":"SUM(D74:F74)","v":{"v":0,"d":"R0.00"}}]
[]
[]
[null,"GRADE 4: SCHOLASTIC STATIONERY PACKS (ITEMS 4)",null,"(Price for quantities indicated)"]
[]
["ITEM NO","                                              SPECIFICATION/TYPE/DESCRIPTIONS","QTY","1st Year Price","2nd Year Price","3rd Year Price"]
[null,"Exercise Books"]
["4.1","Book Exercise: Feint with margin, size A4, 72pages, soft cover",15]
["4.2","Book Exercise:feint with margin, 192 pages, hard cover, 2 Quire, Size A4",2]
["4.3","Book Exercise:feint with margin, 288 pages, hard cover, 3 Quire, Size A4",2]
["4.4","Graph Book: Size A4, 72pages",1]
["4.5","Drawing book: white without inter-leaving paper, soft cover, Size A4, 72pages",1]
["4.6","HB Pencil:  Good Quality, Blacklead, The wood must not be spongy, but should shave off clearly when sharpened on a rotary sharpener (submit sample and indicate brand/model in table on Standard Conditions)",4]
["4.7","Pen Ballpoint: Blue, Non-rectractable, non-replaceable refill. Ballsize: medium",4]
["4.8","Maths Set: Case, Mathematical Instruments, Metal case, Contents:Compass, Stencil, Dividers, Pencil,30, 45 and 60 set squares, 15cm ruler, Protector, sharpner, Eraser.",1]
["4.9","Eraser: Pencil rectangular, minimum 60 x 20 x 10mm, Soft and of good quality, Individually sleeved or wrappe, non toxic",1]
["4.10","Pencil Sharpener: 2-hole sharpener with high quality sharpening blades (submit sample and indicate brand/model in table on Standard Conditions)",1]
["4.11","Scissors: Round-nosed stainless steel (135 mm)",1]
["4.12","Ruler: plastic, 300mm long, graduated plastic, non-brittle). Top graduated both sides",1]
["4.13","Glue Stick: Size 40g, non-toxic, (3 year shelf life) (submit sample and indicate brand/model in table on Standard Conditions)",4]
[null,"Grand Total Amount Per Pack,Per Learner ",null,"1st Year Price","2nd Year Price","3rd Year Price","Total/pack 3 years"]
[null,"(Including Supply and Delivery to Schools)",null,{"$f":"SUM(D81:D93)","v":{"v":0,"d":"R0.00"}},{"$f":"SUM(E81:E93)","v":{"v":0,"d":"R0.00"}},{"v":0,"d":"R0.00"},{"$f":"SUM(D95:F95)","v":{"v":0,"d":"R0.00"}}]
[]
[]
[]
[null,"GRADE 5-6: SCHOLASTIC STATIONERY PACKS (ITEMS 5)",null,"(Price for quantities indicated)"]
[]
[]
["ITEM NO","                                              SPECIFICATION/TYPE/DESCRIPTIONS","QTY","1st Year Price","2nd Year Price","3rd Year Price"]
["5.1 ","Book Exercise: Feint with margin, size A4, 72pages, soft cover",20]
["5.2","Book Exercise:feint with margin, 192 pages, hard cover, 2 Quire, Size A4",2]
["5.3","Book Exercise:feint with margin, 288 pages, hard cover, 3 Quire, Size A4",2]
["5.4","Graph Book: Size A4, 72pages",1]
["5.5","Drawing book: white without inter-leaving paper, soft cover, Size A4, 72pages",1]
["5.6","HB Pencil:  Good Quality, Blacklead, The wood must not be spongy, but should shave off clearly when sharpened on a rotary sharpener (submit sample and indicate brand/model in table on Standard Conditions)",4]
["5.7","Pen Ballpoint: Blue, Non-rectractable, non-replaceable refill. Ballsize: medium",4]
["5.8","Maths Set: Case, Mathematical Instruments, Metal case, Contents:Compass, Stencil, Dividers, Pencil,30, 45 and 60 set squares, 15cm ruler, Protector, sharpner, Eraser.",1]
["5.9","Eraser: Pencil rectangular, minimum 60 x 20 x 10mm, Soft and of good quality, Individually sleeved or wrappe, non toxic",1]
["5.10","Pencil Sharpener: 2-hole sharpener with high quality sharpening blades (submit sample and indicate brand/model in table on Standard Conditions)",1]
["5.11","Scissors: Round-nosed stainless steel (135 mm)",1]
["5.12","Ruler: plastic, 300mm long, graduated plastic, non-brittle). Top graduated both sides",1]
["5.13","Glue Stick: Size 40g, non-toxic, (3 year shelf life) (submit sample and indicate brand/model in table on Standard Conditions)",4]
[null,"Grand Total Amount Per Pack,Per Learner ",null,"1st Year Price","2nd Year Price","3rd Year Price","Total/pack 3 years"]
[null,"(Including Supply and Delivery to Schools)",null,{"$f":"SUM(D103:D115)","v":{"v":0,"d":"R0.00"}},{"$f":"SUM(E103:E115)","v":{"v":0,"d":"R0.00"}},{"v":0,"d":"R0.00"},{"$f":"SUM(D117:F117)","v":{"v":0,"d":"R0.00"}}]
[]
[]
[null,"GRADE 7: SCHOLASTIC STATIONERY PACKS  (ITEM 6)",null,"(Price for quantities indicated)"]
[]
["ITEM NO","                                              SPECIFICATION/TYPE/DESCRIPTIONS","QTY","1st Year Price","2nd Year Price","3rd Year Price"]
[6.1,"Book Exercise: Feint with margin, size A4, 72pages, soft cover",20]
[6.2,"Book Exercise:feint with margin, 192 pages, hard cover, 2 Quire, Size A4",2]
[6.3,"Book Exercise:feint with margin, 288 pages, hard cover, 3 Quire, Size A4",2]
[6.4,"Graph Book: Size A4, 72pages",1]
[6.5,"HB Pencil:  Good Quality, Blacklead, The wood must not be spongy, but should shave off clearly when sharpened on a rotary sharpener (submit sample and indicate brand/model in table on Standard Conditions)",4]
[6.6,"Pen Ballpoint: Blue, Non-rectractable, non-replaceable refill. Ballsize: medium",4]
[6.7,"Maths Set: Case, Mathematical Instruments, Metal case, Contents:Compass, Stencil, Dividers, Pencil,30, 45 and 60 set squares, 15cm ruler, Protector, sharpner, Eraser.",1]
[6.8,"Eraser: Pencil rectangular, minimum 60 x 20 x 10mm, Soft and of good quality, Individually sleeved or wrappe, non toxic",1]
[6.9,"Pencil Sharpener: 2-hole sharpener with high quality sharpening blades (submit sample and indicate brand/model in table on Standard Conditions)",1]
[{"v":6.1,"d":"6.10"},"Scissors: Round-nosed stainless steel (135 mm)",1]
[6.11,"Ruler: plastic, 300mm long, graduated plastic, non-brittle). Top graduated both sides",1]
[6.12,"Glue Stick: Size 40g, non-toxic, (3 year shelf life) (submit sample and indicate brand/model in table on Standard Conditions)",4]
[null,"Grand Total Amount Per Pack,Per Learner ",null,"1st Year Price","2nd Year Price","3rd Year Price","Total/pack 3 years"]
[null,"(Including Supply and Delivery to Schools)",null,{"$f":"SUM(D123:D134)","v":{"v":0,"d":"R0.00"}},{"$f":"SUM(E123:E134)","v":{"v":0,"d":"R0.00"}},{"v":0,"d":"R0.00"},{"$f":"SUM(D136:F136)","v":{"v":0,"d":"R0.00"}}]
[]
[null,"GRADE 8 & 9: SCHOLASTIC STATIONERY PACKS (ITEM 7)",null,"(Price for quantities indicated)"]
[]
["ITEM NO","                                              SPECIFICATION/TYPE/DESCRIPTIONS","QTY1","1st Year Price","2nd Year Price","3rd Year Price"]
[7.1,"Book Exercise: Feint with margin, size A4, 72pages, soft cover",20]
[7.2,"Book Exercise:feint with margin, 192 pages, hard cover, 2 Quire, Size A4",2]
[7.3,"Book Exercise:feint with margin, 288 pages, hard cover, 3 Quire, Size A4",2]
[7.4,"Graph Book: Size A4, 72pages",1]
[7.5,"HB Pencil:  Good Quality, Blacklead, The wood must not be spongy, but should shave off clearly when sharpened on a rotary sharpener (submit sample and indicate brand/model in table on Standard Conditions)",4]
[7.6,"Pen Ballpoint: Blue, Non-rectractable, non-replaceable refill. Ballsize: medium",4]
[7.7,"Pencil Sharpener: 2-hole sharpener with high quality sharpening blades (submit sample and indicate brand/model in table on Standard Conditions)",1]
[7.8,"Eraser: Pencil rectangular, minimum 60 x 20 x 10mm, Soft and of good quality, Individually sleeved or wrappe, non toxic",1]
[7.9,"Scissors: Round-nosed stainless steel (135 mm)",1]
[{"v":7.1,"d":"7.10"},"Ruler: plastic, 300mm long, graduated plastic, non-brittle). Top graduated both sides",1]
[7.11,"Glue Stick: Size 40g, non-toxic, (3 year shelf life) (submit sample and indicate brand/model in table on Standard Conditions)",1]
[7.12,"Crayon: Pencil type, half size, box of 12 colours",1]
[null,"Grand Total Amount Per Pack,Per Learner ",null,"1st Year Price","2nd Year Price","3rd Year Price","Total/pack 3 years"]
[null,"(Including Supply and Delivery to Schools)",null,{"$f":"SUM(D141:D152)","v":{"v":0,"d":"R0.00"}},{"$f":"SUM(E141:E152)","v":{"v":0,"d":"R0.00"}},{"v":0,"d":"R0.00"},{"$f":"SUM(D154:F154)","v":{"v":0,"d":"R0.00"}}]
[]
[]
[null,"GRADE 10-12: SCHOLASTIC STATIONERY PACKS (ITEM 8)",null,"(Price for quantities indicated)"]
[]
["ITEM NO","                                              SPECIFICATION/TYPE/DESCRIPTIONS","QTY","1st Year Price","2nd Year Price","3rd Year Price"]
[8.1,"Book Exercise: Feint with margin, size A4, 72pages, soft cover",20]
[8.2,"Book Exercise:feint with margin, 192 pages, hard cover, 2 Quire, Size A4",2]
[8.3,"Book Exercise:feint with margin, 288 pages, hard cover, 3 Quire, Size A4",2]
[8.4,"HB Pencil:  Good Quality, Blacklead, The wood must not be spongy, but should shave off clearly when sharpened on a rotary sharpener (submit sample and indicate brand/model in table on Standard Conditions)",4]
[8.5,"Pen Ballpoint: Blue, Non-rectractable, non-replaceable refill. Ballsize: medium",1]
[8.6,"Pencil Sharpener: 2-hole sharpener with high quality sharpening blades (submit sample and indicate brand/model in table on Standard Conditions)",1]
[8.7,"Eraser: Pencil rectangular, minimum 60 x 20 x 10mm, Soft and of good quality, Individually sleeved or wrappe, non toxic",1]
[8.8,"Ruler: plastic, 300mm long, graduated plastic, non-brittle). Top graduated both sides",1]
[8.9,"Crayon: Pencil type, half size, box of 12 colours (Colouring Pencils)",1]
[{"v":8.1,"d":"8.10"},"Graph Book: Size A4, 72pages",1]
[null,"Grand Total Amount Per Pack,Per Learner ",null,"1st Year Price","2nd Year Price","3rd Year Price","Total/pack 3 years"]
[null,"(Including Supply and Delivery to Schools)",null,{"$f":"SUM(D160:D169)","v":{"v":0,"d":"R0.00"}},{"$f":"SUM(E160:E169)","v":{"v":0,"d":"R0.00"}},{"v":0,"d":"R0.00"},{"$f":"SUM(D171:F171)","v":{"v":0,"d":"R0.00"}}]
[]
[]
[null,"GRADE 10-12: SCHOLASTIC STATIONERY PACKS (ITEM 9) (TECHNICAL STUDIES) "]
[]
["ITEM NO","                                              SPECIFICATION/TYPE/DESCRIPTIONS","QTY","1st Year Price","2nd Year Price","3rd Year Price"]
[9.1,"Drawing Board: Size A2, double-lock",1]
[9.2,"Drawing with an adjusment wheel Compass",1]
[9.3,"Drawing Book:  Drawing without interleaving paper, soft cover, A3, 36 pages unruled",1]
[9.4,"2H Pencil:  Good Quality, Blacklead, The wood must not be spongy, but should shave off clearly when sharpened on a rotary sharpener\n (submit sample and indicate brand/model in table on Standard Conditions)",1]
[9.5,"Plastic Square Set: 45 degrees, 16cm, hyp22cm, 60 degrees, 22cm hyp30cm",1]
[9.6,"T-Square: with protractor",1]
[{"$nulls":3},"1st Year Price","2nd Year Price","3rd Year Price","Total/pack 3 years"]
[null,"Grand Total Amount Per Pack,Per Learner "]
[null,"(Including Supply and Delivery to Schools)",null,{"$f":"SUM(D177:D182)","v":{"v":0,"d":"R0.00"}},{"$f":"SUM(E177:E182)","v":{"v":0,"d":"R0.00"}},{"v":0,"d":"R0.00"},{"$f":"SUM(D185:F185)","v":{"v":0,"d":"R0.00"}}]
[]
[]
[]
[null,"GRADE 8-9: SCHOLASTIC STATIONERY PACK (ITEM 10) (COMMERCIAL SUBJECTS)",null,"(Price for quantities indicated)"]
["ITEM NO","                                              SPECIFICATION/TYPE/DESCRIPTIONS","QTY","1st Year Price","2nd Year Price","3rd Year Price"]
[10.1,"Book: Accounting Treble Column Cash, Size A4, 72 pages. Soft cover",1]
[10.2,"Journal size A4, 72 pages. Soft cover",1]
[10.3,"Book: Accounting, Double column Ledger, Size A4, 72 pages, soft cover",1]
[10.4,"Book: Accounting, Eight Money coloumn cash journal, sizeA4, 72 pages, soft cover",1]
[10.5,"Book: Exercise: Eight Money coloumn Creditors Journal, sizeA4, 72 pages, soft cover",1]
[{"$nulls":3},"1st Year Price","2nd Year Price","3rd Year Price","Total/pack 3 years"]
[null,"Grand Total Amount Per Pack,Per Learner "]
[null,"(Including Supply and Delivery to Schools)",null,{"$f":"SUM(D191:D195)","v":{"v":0,"d":"R0.00"}},{"$f":"SUM(E191:E195)","v":{"v":0,"d":"R0.00"}},{"v":0,"d":"R0.00"},{"$f":"SUM(D198:F198)","v":{"v":0,"d":"R0.00"}}]
[]
[]
[]
[null,"GRADE 10-12: SCHOLASTIC STATIONERY PACKS (ITEM 11) (COMMERCIAL SUBJECTS) ",null,"(Price for quantities indicated)"]
[]
["ITEM NO","                                              SPECIFICATION/TYPE/DESCRIPTIONS","QTY","1st Year Price","2nd Year Price","3rd Year Price"]
[11.1,"Book: Accounting Treble Column Cash, Size A4, 72 pages. Soft cover",3]
[11.2,"Journal size A4, 72 pages. Soft cover",3]
[11.3,"Book: Accounting, Ledger, Size A4, 72 pages, soft cover",3]
[null,"Grand Total Amount Per Pack,Per Learner ",null,"1st Year Price","2nd Year Price","3rd Year Price","Total/pack 3 years"]
[null,"(Including Supply and Delivery to Schools)",null,{"$f":"SUM(D205:D207)","v":{"v":0,"d":"R0.00"}},{"$f":"SUM(E205:E207)","v":{"v":0,"d":"R0.00"}},{"v":0,"d":"R0.00"},{"$f":"SUM(D209:F209)","v":{"v":0,"d":"R0.00"}}]
[]
[]
[null,"GRADE 10-12: SCHOLASTIC STATIONERY PACKS (ITEM 12) (VISUAL ARTS SUBJECTS) ",null,"(Price for quantities indicated)"]
[]
[]
["ITEM NO","                                              SPECIFICATION/TYPE/DESCRIPTIONS","QTY","1st Year Price","2nd Year Price","3rd Year Price"]
[12.1,"Drawing Book:  Drawing with interleaving paper, soft cover, A3L, 36 pages unruled",1]
[12.2,"2HB Pencil:  Good Quality, Blacklead, The wood must not be spongy, but should shave off clearly when sharpened on a rotary sharpener (submit sample and indicate brand/model in table on Standard Conditions)",1]
[12.3,"3HB Pencil:  Good Quality, Blacklead, The wood must not be spongy, but should shave off clearly when sharpened on a rotary sharpener",1]
[12.4,"4HB Pencil:  Good Quality, Blacklead, The wood must not be spongy, but should shave off clearly when sharpened on a rotary sharpener",1]
[12.5,"5HB Pencil:  Good Quality, Blacklead, The wood must not be spongy, but should shave off clearly when sharpened on a rotary sharpener",1]
[12.6,"6HB Pencil:  Good Quality, Blacklead, The wood must not be spongy, but should shave off clearly when sharpened on a rotary sharpener",1]
[null,"Grand Total Amount Per Pack,Per Learner ",null,"1st Year Price","2nd Year Price","3rd Year Price","Total/pack 3 years"]
[null,"(Including Supply and Delivery to Schools)",null,{"$f":"SUM(D216:D221)","v":{"v":0,"d":"R0.00"}},{"$f":"SUM(E216:E221)","v":{"v":0,"d":"R0.00"}},{"v":0,"d":"R0.00"},{"$f":"SUM(D223:F223)","v":{"v":0,"d":"R0.00"}}]
[]
[]
[]
[null,"TECHNOLOGY PACK GRADE 7-9 (ITEM 13)",null,"(Price for quantities indicated)"]
[]
["ITEM NO","                                              SPECIFICATION/TYPE/DESCRIPTIONS","QTY","1st Year Price","2nd Year Price","3rd Year Price"]
[13.1,"Drawing board, A3",1]
[13.2,"T-Square, 610mm",1]
[13.3,"Protractor, 15 cm",1]
[13.4,"2HB Pencil:  Good Quality, Blacklead, The wood must not be spongy, but should shave off clearly when sharpened on a rotary sharpener (submit sample and indicate brand/model in table on Standard Conditions)",1]
[13.5,"Crayon: Pencil type, Full size, box of 12 colours (Colouring Pencils)",1]
[13.6,"Tape, masking 15mm width x 50m length",1]
[13.7,"Compass, 0,3 mm Attachements and spares",1]
[13.8,"Pair of dividers",1]
[13.9,"Plastic Square Set: 45 degrees, 16cm, hyp22cm, 60 degrees, 22cm hyp30cm",1]
[{"v":13.1,"d":"13.10"},"Ruler: plastic, 300mm long, graduated plastic, non-brittle). Top graduated both sides",1]
[null,"Grand Total Amount Per Pack,Per Learner ",null,"1st Year Price","2nd Year Price","3rd Year Price","Total/pack 3 years"]
[null,"(Including Supply and Delivery to Schools)",null,{"$f":"SUM(D230:D239)","v":{"v":0,"d":"R0.00"}},{"$f":"SUM(E230:E239)","v":{"v":0,"d":"R0.00"}},{"v":0,"d":"R0.00"},{"$f":"SUM(D241:F241)","v":{"v":0,"d":"R0.00"}}]
[]
[]
[null,"GRADE 4-7: SCHOLASTIC STATIONERY PACKS (ITEM 14) (CREATIVE ARTS GRADES ",null,"(Price for quantities indicated)"]
[]
["ITEM NO","                                              SPECIFICATION/TYPE/DESCRIPTIONS","QTY","1st Year Price","2nd Year Price","3rd Year Price"]
[14.1,"Drawing Book:  Drawing with interleaving paper, soft cover, A3, 36 pages unruled",1]
[14.2,"2HB Pencil:  Good Quality, Blacklead, The wood must not be spongy, but should shave off clearly when sharpened on a rotary sharpener (submit sample and indicate brand/model in table on Standard Conditions)",1]
[14.3,"4HB Pencil:  Good Quality, Blacklead, The wood must not be spongy, but should shave off clearly when sharpened on a rotary sharpener",1]
[14.4,"6HB Pencil:  Good Quality, Blacklead, The wood must not be spongy, but should shave off clearly when sharpened on a rotary sharpener",1]
[14.5,"Hrd Model Paste 1kg white",1]
[14.6,"Paint, Acrylic 75ml Red N/Q",1]
[14.7,"Paint, Acrylic 75ml Yellow N/Q",1]
[14.8,"Paint, Acrylic 75ml Blue N/Q",1]
[null,"Grand Total Amount Per Pack,Per Learner ",null,"1st Year Price","2nd Year Price","3rd Year Price","Total/pack 3 years"]
[null,"(Including Supply and Delivery to Schools)",null,{"$f":"SUM(D247:D254)","v":{"v":0,"d":"R0.00"}},{"$f":"SUM(E247:E254)","v":{"v":0,"d":"R0.00"}},{"v":0,"d":"R0.00"},{"$f":"SUM(D256:F256)","v":{"v":0,"d":"R0.00"}}]
[]
[]
[null,"OPTIONAL ITEMS"]
[]
[null,"GRADE R-12  (ITEM 15)",null,"(Price for quantities indicated)"]
[]
["ITEM NO","                                              SPECIFICATION/TYPE/DESCRIPTIONS","QTY","1st Year Price","2nd Year Price","3rd Year Price"]
[15.1,"Examination Pads: Size A4, feint with margin, punched 80  pages",1]
[15.2,"Examination Pads: Size A4, feint with margin, punched 100  pages",1]
[15.3,"Double Folio sheets: Size A4, feint with margin, 72 pages",1]
[null,"Grand Total Amount Per Pack,Per Learner ",null,"1st Year Price","2nd Year Price",{"v":1,"d":"R1.00"},"Total/pack 3 years"]
[null,"(Including Supply and Delivery to Schools)",null,{"$f":"SUM(D264:D266)","v":{"v":0,"d":"R0.00"}},{"$f":"SUM(E264:E266)","v":{"v":0,"d":"R0.00"}},{"v":0,"d":"R0.00"},{"$f":"SUM(D268:F268)","v":{"v":0,"d":"R0.00"}}]
[]
[]
[null,"GRADE R-12 (ITEM 16)"]
[]
["ITEM NO","                                              SPECIFICATION/TYPE/DESCRIPTIONS","QTY","1st Year Price","2nd Year Price","3rd Year Price"]
[16.1,"Photocopy Paper: White, Size A4, Box of 5 reams (500 sheets per ream) of 80g/m, According to the latest issue of SABS specifications",1]
[null,"Grand Total Amount Per Pack,Per Learner ",null,"1st Year Price","2nd Year Price","3rd Year Price","Total/pack 3 years"]
[null,"(Including Supply and Delivery to Schools)",null,{"$f":"SUM(D274)","v":{"v":0,"d":"R0.00"}},{"$f":"SUM(E274)","v":{"v":0,"d":"R0.00"}},{"v":0,"d":"R0.00"},{"$f":"SUM(D276:F276)","v":{"v":0,"d":"R0.00"}}]
[]
[]
[null,"GRADE R-7 (ITEM 17)"]
["ITEM NO","                                              SPECIFICATION/TYPE/DESCRIPTIONS","QTY","1st Year Price","2nd Year Price","3rd Year Price"]
[17.1,"Glue: White Wood Glue, 500ml, (3 years shelf life span) SANS 1348:2006 or SANS 1349:2006",1]
[null,"Grand Total Amount Per Pack,Per Learner ",null,"1st Year Price","2nd Year Price","3rd Year Price","Total/pack 3 years"]
[null,"(Including Supply and Delivery to Schools)",null,{"$f":"SUM(D281)","v":{"v":0,"d":"R0.00"}},{"$f":"SUM(E281)","v":{"v":0,"d":"R0.00"}},{"v":0,"d":"R0.00"},{"$f":"SUM(D283:F283)","v":{"v":0,"d":"R0.00"}}]
[]
[null,"CHALK (ITEM 18)"]
["ITEM NO","                                              SPECIFICATION/TYPE/DESCRIPTIONS","QTY","1st Year Price","2nd Year Price","3rd Year Price"]
[18.1,"Box of Chalk Coloured, 100 pieces \n(Submit sample and indicate brand/model in table on Standard Conditions)",1]
[18.2,"Box of Chalk White, 100 pieces",1]
[null,"Total Amount Per Pack,Per Learner ",null,"1st Year Price","2nd Year Price","3rd Year Price","Total/pack 3 years"]
[null,"(Including Supply and Delivery to Schools)",null,{"$f":"SUM(D287:D288)","v":{"v":0,"d":"R0.00"}},{"$f":"SUM(E287:E288)","v":{"v":0,"d":"R0.00"}},{"v":0,"d":"R0.00"},{"$f":"SUM(D290:F290)","v":{"v":0,"d":"R0.00"}}]
[]
[]
[null,"Chalk Board Duster (ITEM 19)"]
["ITEM NO","                                              SPECIFICATION/TYPE/DESCRIPTIONS","QTY","1st Year Price","2nd Year Price","3rd Year Price"]
[19.1,"Chalk Board Duster ",1]
[null,"Total Amount Per Pack,Per Learner ",null,"1st Year Price","2nd Year Price","3rd Year Price","Total/pack 3 years"]
[null,"(Including Supply and Delivery to Schools)",null,{"$f":"SUM(D295)","v":{"v":0,"d":"R0.00"}},{"$f":"SUM(E295)","v":{"v":0,"d":"R0.00"}},{"v":0,"d":"R0.00"},{"$f":"SUM(D297:F297)","v":{"v":0,"d":"R0.00"}}]
[]
[null,"Pencil Case Zipbag (ITEM 20)"]
["ITEM NO","                                              SPECIFICATION/TYPE/DESCRIPTIONS","QTY","1st Year Price","2nd Year Price","3rd Year Price"]
[20.1,"Pencil Case Zipbag",1]
[null,"Total Amount Per Pack,Per Learner ",null,"1st Year Price","2nd Year Price","3rd Year Price","Total/pack 3 years"]
[null,"(Including Supply and Delivery to Schools)",null,{"$f":"SUM(D301)","v":{"v":0,"d":"R0.00"}},{"$f":"SUM(E301)","v":{"v":0,"d":"R0.00"}},{"v":0,"d":"R0.00"},{"$f":"SUM(D303:F303)","v":{"v":0,"d":"R0.00"}}]
[]
[]
[null,"Mathematical Set Intruments (ITEM 21)"]
["ITEM NO","                                              SPECIFICATION/TYPE/DESCRIPTIONS","QTY","1st Year Price","2nd Year Price","3rd Year Price"]
[21.1,"Maths Set: Case, Mathematical Instruments, Metal case, Contents:Compass, Stencil, Dividers, Pencil,30, 45 and 60 set squares, 15cm ruler, Protector, sharpner, Eraser.(Optional)",1]
[null,"Total Amount Per Pack,Per Learner ",null,"1st Year Price","2nd Year Price","3rd Year Price","Total/pack 3 years"]
[null,"(Including Supply and Delivery to Schools)",null,{"$f":"SUM(D308)","v":{"v":0,"d":"R0.00"}},{"$f":"SUM(E308)","v":{"v":0,"d":"R0.00"}},{"v":0,"d":"R0.00"},{"$f":"SUM(D310:F310)","v":{"v":0,"d":"R0.00"}}]
[]
[]
[null,"Calculator, Scientific (ITEM 22)"]
["ITEM NO","                                              SPECIFICATION/TYPE/DESCRIPTIONS","QTY","1st Year Price","2nd Year Price","3rd Year Price"]
[22.1,"Calculator: Standard Scientific, 249 funtions, display 2 lines, 10+2 digits, memory 9, table function, fractions, statistics, DOT Matrix, multi reply function, hand held, battery power (AAA batteries/ flat button battery)",1]
[null,"Total Amount Per Pack,Per Learner ",null,"1st Year Price","2nd Year Price","3rd Year Price","Total/pack 3 years"]
[null,"(Including Supply and Delivery to Schools)",null,{"$f":"SUM(D315)","v":{"v":0,"d":"R0.00"}},{"$f":"SUM(E315)","v":{"v":0,"d":"R0.00"}},{"v":0,"d":"R0.00"},{"$f":"SUM(D317:F317)","v":{"v":0,"d":"R0.00"}}]
[]
[]
[null,"Calculator Technical Mathematics & Science (ITEM 23)"]
["ITEM NO","                                              SPECIFICATION/TYPE/DESCRIPTIONS","QTY","1st Year Price","2nd Year Price","3rd Year Price"]
[23.1,"Technical Mathematics and Science: Calculator: - Casio fx 82ZA Plus, hand held, battery power (AAA batteries) (buy in Grade 10 and to be used for three years (Optional)",1]
[null,"Total Amount Per Pack,Per Learner ",null,"1st Year Price","2nd Year Price","3rd Year Price","Total/pack 3 years"]
[null,"(Including Supply and Delivery to Schools)",null,{"$f":"SUM(D322)","v":{"v":0,"d":"R0.00"}},{"$f":"SUM(E322)","v":{"v":0,"d":"R0.00"}},{"v":0,"d":"R0.00"},{"$f":"SUM(D324:F324)","v":{"v":0,"d":"R0.00"}}]
[]
[]
[null,"Calculator  (ITEM 24)"]
["ITEM NO","                                              SPECIFICATION/TYPE/DESCRIPTIONS","QTY","1st Year Price","2nd Year Price","3rd Year Price"]
[24.1,"Calculator, 12 digits  (normal)",1]
[null,"Total Amount Per Pack,Per Learner ",null,"1st Year Price","2nd Year Price","3rd Year Price","Total/pack 3 years"]
[null,"(Including Supply and Delivery to Schools)",null,{"$f":"SUM(D329)","v":{"v":0,"d":"R0.00"}},{"$f":"SUM(E329)","v":{"v":0,"d":"R0.00"}},{"v":0,"d":"R0.00"},{"$f":"SUM(D331:F331)","v":{"v":0,"d":"R0.00"}}]
[]
[]
[]
[null,"Drawing Book (ITEM 25)"]
["ITEM NO","                                              SPECIFICATION/TYPE/DESCRIPTIONS","QTY","1st Year Price","2nd Year Price","3rd Year Price"]
[25.1,"Drawing book: white without inter-leaving paper, soft cover, Size A4, 72pages (Optional)",1]
[null,"Total Amount Per Pack,Per Learner ",null,"1st Year Price","2nd Year Price","3rd Year Price","Total/pack 3 years"]
[null,"(Including Supply and Delivery to Schools)",null,{"$f":"SUM(D337)","v":{"v":0,"d":"R0.00"}},{"$f":"SUM(E337)","v":{"v":0,"d":"R0.00"}},{"v":0,"d":"R0.00"},{"$f":"SUM(D339:F339)","v":{"v":0,"d":"R0.00"}}]
[]
[]
[]
[]
[null,"T-Square (ITEM 26)"]
["ITEM NO","                                              SPECIFICATION/TYPE/DESCRIPTIONS","QTY","1st Year Price","2nd Year Price","3rd Year Price"]
[26.1,"T-Square 600mm",1]
[null,"Total Amount Per Pack,Per Learner ",null,"1st Year Price","2nd Year Price","3rd Year Price","Total/pack 3 years"]
[null,"(Including Supply and Delivery to Schools)",null,{"$f":"SUM(D346)","v":{"v":0,"d":"R0.00"}},{"$f":"SUM(E346)","v":{"v":0,"d":"R0.00"}},{"v":0,"d":"R0.00"},{"$f":"SUM(D348:F348)","v":{"v":0,"d":"R0.00"}}]
[]
[null,"GRAND TOTAL FOR ALL PACKAGES IF QUANTITY OF ONE PER PACKAGE IS ORDERED",null,{"$f":"SUM(D348+D339+D331+D324+D317+D310+D303+D297+D290+D283+D276+D268+D256+D241+D223+D209+D198+D185+D171+D154+D136+D117+D95+D74+D49+D24)","v":{"v":0,"d":"R0.00"}},{"$f":"SUM(E348+E339+E331+E324+E317+E310+E303+E297+E290+E283+E276+E268+E256+E241+E223+E209+E198+E185+E171+E154+E136+E117+E95+E74+E49+E24)","v":{"v":0,"d":"R0.00"}},{"$f":"SUM(F348+F339+F331+F324+F317+F310+F303+F297+F290+F283+F276+F268+F256+F241+F223+F209+F198+F185+F171+F154+F136+F117+F95+F74+F49+F24)","v":{"v":0,"d":"R0.00"}},{"$f":"SUM(G348+G339+G331+G324+G317+G310+G303+G297+G290+G283+G276+G268+G256+G241+G223+G209+G198+G185+G171+G154+G136+G117+G95+G74+G49+G24)","v":{"v":0,"d":"R0.00"}}]
[{"$nulls":6},{"$f":"SUM(G348+G339+G331+G324+G317+G310+G303+G297+G290+G283+G276+G268+G256+G241+G223+G209+G198+G185+G171+G154+G136+G117+G95+G74+G49+G24)","v":{"v":0,"d":"R0.00"}}]
[]
[null,"COMPANY:  _____________________________  SIGNATURE:____________________________________     "]